fUST/lending_fUST_20240102
["ID","MTS","AMOUNT","RATE_DAILY","PERIOD"]
[309806630,1704156639815,-150.0,0.00041222,7]
[309806632,1704156639825,-500.0,0.00041232,7]
[309806634,1704156639834,-500.0,0.00041232,7]
[309806636,1704156639842,-500.0,0.00041232,7]
[309806637,1704156639851,-2320.77,0.00041232,7]
[309806639,1704156639861,-2204.61,0.00041232,7]
[309806641,1704156639871,-500.0,0.00041232,7]
[309806643,1704156639881,-500.0,0.00041232,7]
[309806645,1704156639890,-500.0,0.00041232,7]
[309806647,1704156639900,-500.0,0.00041232,7]
[309806649,1704156639910,-500.0,0.00041232,7]
[309806651,1704156639920,-500.0,0.00041232,7]
[309806653,1704156639930,-500.0,0.00041232,7]
[309806655,1704156639939,-651.12,0.00041232,7]
[309806657,1704156639950,-500.0,0.00041232,7]
[309806659,1704156639961,-24511.65,0.00041232,3]
[309806661,1704156639970,-500.0,0.00041232,7]
[309806663,1704156639980,-500.0,0.00041232,7]
[309806665,1704156639989,-500.0,0.00041232,7]
[309806667,1704156639998,-500.0,0.00041232,7]
[309806669,1704156640007,-500.0,0.00041232,7]
[309806671,1704156640017,-500.0,0.00041232,7]
[309806673,1704156640026,-500.0,0.00041232,7]
[309806675,1704156640035,-500.0,0.00041232,7]
[309806677,1704156640045,-2410.99,0.00041232,7]
[309806679,1704156640054,-3333.35,0.00041232,7]
[309806681,1704156640063,-572.68,0.00041232,7]
[309806683,1704156640072,-500.0,0.00041232,7]
[309806684,1704156640081,-5595.49,0.00041232,7]
[309806685,1704156640091,-500.0,0.00041232,7]
[309806687,1704156640100,-500.0,0.00041232,7]
[309806689,1704156640109,-732.14,0.00041232,7]
[309806691,1704156640119,-1978.76,0.00041232,7]
[309806693,1704156640129,-500.0,0.00041232,7]
[309806695,1704156640138,-500.0,0.00041232,7]
[309806697,1704156640148,-968.19,0.00041232,7]
[309806699,1704156640158,-500.0,0.00041232,7]
[309806701,1704156640168,-531.6,0.00041232,7]
[309806711,1704156640254,-1928.02,0.00041232,7]
[309806713,1704156640265,-526.7657092,0.00041232,7]
[309806715,1704156640274,-250.77045699,0.00041267,4]
[309806717,1704156640284,-249.81304422,0.00041267,4]
[309806719,1704156640294,-196.14263589,0.00041267,4]
[309806721,1704156640303,-374.02579325,0.00041267,4]
[309806723,1704156640312,-180.01708911,0.00041267,4]
[309806725,1704156640321,-2094.98073876,0.00041267,4]
[309806727,1704156640330,-155.69497247,0.00041267,4]
[309806729,1704156640340,-3890.78792731,0.00041267,4]
[309806731,1704156640349,-263.45402214,0.00041267,4]
[309806733,1704156640359,-168.04364669,0.00041267,4]
[309806735,1704156640368,-552.52248839,0.00041267,4]
[309806737,1704156640378,-242.05107126,0.00041267,4]
[309806739,1704156640387,-169.28946322,0.00041267,4]
[309806741,1704156640397,-627.28828351,0.00041267,4]
[309806743,1704156640406,-469.76112866,0.00041268,4]
[309806745,1704156640415,-4101.39787276,0.00041269,4]
[309806747,1704156640424,-886.2099919,0.00041269,4]
[309806749,1704156640433,-216.4919228,0.00041368,7]
[309806751,1704156640442,-500.0,0.00041369,7]
[309806753,1704156640451,-325.93189908,0.00041369,7]
[309806755,1704156640463,-500.0,0.00041369,7]
[309806756,1704156640472,-2320.77,0.00041369,7]
[309806758,1704156640481,-2204.61,0.00041369,7]
[309806760,1704156640490,-500.0,0.00041369,7]
[309806762,1704156640500,-500.0,0.00041369,7]
[309806764,1704156640510,-500.0,0.00041369,7]
[309806766,1704156640519,-500.0,0.00041369,7]
[309806768,1704156640528,-500.0,0.00041369,7]
[309806770,1704156640537,-500.0,0.00041369,7]
[309806772,1704156640546,-500.0,0.00041369,7]
[309806774,1704156640555,-651.12,0.00041369,7]
[309806776,1704156640564,-500.0,0.00041369,7]
[309806778,1704156640573,-24511.65,0.00041369,3]
[309806780,1704156640582,-500.0,0.00041369,7]
[309806782,1704156640591,-500.0,0.00041369,7]
[309806784,1704156640600,-586.06002618,0.00041369,7]
[309806786,1704156640609,-500.0,0.00041369,7]
[309806788,1704156640618,-500.0,0.00041369,7]
[309806789,1704156640627,-500.0,0.00041369,7]
[309806791,1704156640637,-296.97843713,0.00041369,7]
[309806792,1704156640646,-509.57407601,0.00041369,7]
[309806793,1704156640655,-2410.99,0.00041369,7]
[309806795,1704156640664,-3333.35,0.00041369,7]
[309806796,1704156640673,-572.68,0.00041369,7]
[309806797,1704156640682,-500.0,0.00041369,7]
[309806798,1704156640691,-5595.49,0.00041369,7]
[309806800,1704156640700,-500.0,0.00041369,7]
[309806801,1704156640711,-500.0,0.00041369,7]
[309806802,1704156640721,-732.14,0.00041369,7]
[309806803,1704156640730,-1978.76,0.00041369,7]
[309806804,1704156640739,-500.0,0.00041369,7]
[309806806,1704156640748,-314.35857318,0.00041369,7]
[309806808,1704156640757,-968.19,0.00041369,7]
[309806810,1704156640767,-500.0,0.00041369,7]
[309806812,1704156640776,-531.6,0.00041369,7]
[309806814,1704156640785,-1928.02,0.00041369,7]
[309806816,1704156640794,-299.365,0.00041487,2]
[309806818,1704156640803,-158.0,0.00041487,2]
[309806820,1704156640812,-150.0,0.00041487,2]
[309806822,1704156640821,-23053.90850853,0.00041505,4]
[309806823,1704156640829,-168.43551829,0.00041506,3]
[309806825,1704156640838,-500.0,0.00041506,7]
[309806827,1704156640847,-500.0,0.00041506,7]
[309806829,1704156640856,-2320.77,0.00041506,7]
[309806831,1704156640866,-2204.61,0.00041506,7]
[309806833,1704156640875,-412.33022692,0.00041506,7]
[309806834,1704156640884,-619.58734193,0.00041506,7]
[309806835,1704156640894,-500.0,0.00041506,7]
[309806836,1704156640903,-500.0,0.00041506,7]
[309806837,1704156640913,-500.0,0.00041506,7]
[309806838,1704156640922,-500.0,0.00041506,7]
[309806839,1704156640931,-500.0,0.00041506,7]
[309806840,1704156640941,-651.12,0.00041506,7]
[309806841,1704156640960,-500.0,0.00041506,7]
[309806842,1704156640974,-24511.65,0.00041506,3]
[309806843,1704156640983,-500.0,0.00041506,7]
[309806844,1704156640994,-500.0,0.00041506,7]
[309806845,1704156641004,-500.0,0.00041506,7]
[309806846,1704156641013,-500.0,0.00041506,7]
[309806847,1704156641022,-500.0,0.00041506,7]
[309806848,1704156641031,-2410.99,0.00041506,7]
[309806849,1704156641040,-3333.35,0.00041506,7]
[309806850,1704156641050,-572.68,0.00041506,7]
[309806851,1704156641060,-500.0,0.00041506,7]
[309806852,1704156641069,-5595.49,0.00041506,7]
[309806853,1704156641078,-500.0,0.00041506,7]
[309806854,1704156641087,-500.0,0.00041506,7]
[309806855,1704156641097,-732.14,0.00041506,7]
[309806856,1704156641107,-1978.76,0.00041506,7]
[309806857,1704156641116,-500.0,0.00041506,7]
[309806858,1704156641126,-968.19,0.00041506,7]
[309806859,1704156641135,-500.0,0.00041506,7]
[309806860,1704156641144,-531.6,0.00041506,7]
[309806861,1704156641153,-1928.02,0.00041506,7]
[309806862,1704156641163,-249.01664,0.00041553,120]
[309806863,1704156641172,-500.0,0.00041643,7]
[309806864,1704156641181,-2320.77,0.00041643,7]
[309806865,1704156641190,-2204.61,0.00041643,7]
[309806866,1704156641200,-500.0,0.00041643,7]
[309806867,1704156641211,-500.0,0.00041643,7]
[309806868,1704156641221,-500.0,0.00041643,7]
[309806869,1704156641231,-500.0,0.00041643,7]
[309806870,1704156641240,-651.12,0.00041643,7]
[309806871,1704156641249,-500.0,0.00041643,7]
[309806872,1704156641258,-24511.65,0.00041643,3]
[309806873,1704156641267,-500.0,0.00041643,7]
[309806874,1704156641276,-547.64127988,0.00041643,7]
[309806875,1704156641285,-500.0,0.00041643,7]
[309806876,1704156641294,-500.0,0.00041643,7]
[309806877,1704156641303,-497.79372547,0.00041643,7]
[309806878,1704156641313,-2410.99,0.00041643,7]
[309806879,1704156641322,-3333.35,0.00041643,7]
[309806880,1704156641331,-572.68,0.00041643,7]
[309806881,1704156641340,-500.0,0.00041643,7]
[309806882,1704156641349,-5595.49,0.00041643,7]
[309806883,1704156641358,-500.0,0.00041643,7]
[309806884,1704156641367,-500.0,0.00041643,7]
[309806885,1704156641376,-732.14,0.00041643,7]
[309806886,1704156641385,-1978.76,0.00041643,7]
[309806887,1704156641395,-230.65121076,0.00041643,7]
[309806888,1704156641404,-968.19,0.00041643,7]
[309806889,1704156641413,-500.0,0.00041643,7]
[309806890,1704156641422,-531.6,0.00041643,7]
[309806891,1704156641432,-1928.02,0.00041643,7]
[309806892,1704156641441,-500.0,0.0004178,7]
[309806893,1704156641450,-2320.77,0.0004178,7]
[309806894,1704156641459,-2204.61,0.0004178,7]
[309806895,1704156641468,-500.0,0.0004178,7]
[309806896,1704156641477,-500.0,0.0004178,7]
[309806897,1704156641488,-500.0,0.0004178,7]
[309806898,1704156641497,-651.12,0.0004178,7]
[309806899,1704156641507,-500.0,0.0004178,7]
[309806900,1704156641516,-24511.65,0.0004178,3]
[309806901,1704156641526,-327.2937778,0.0004178,7]
[309806902,1704156641535,-500.0,0.0004178,7]
[309806903,1704156641544,-500.0,0.0004178,7]
[309806904,1704156641555,-2410.99,0.0004178,7]
[309806905,1704156641563,-3333.35,0.0004178,7]
[309806906,1704156641573,-572.68,0.0004178,7]
[309806907,1704156641582,-500.0,0.0004178,7]
[309806908,1704156641591,-5595.49,0.0004178,7]
[309806909,1704156641601,-500.0,0.0004178,7]
[309806910,1704156641610,-500.0,0.0004178,7]
[309806911,1704156641621,-732.14,0.0004178,7]
[309806912,1704156641630,-1978.76,0.0004178,7]
[309806914,1704156641639,-968.19,0.0004178,7]
[309806916,1704156641649,-500.0,0.0004178,7]
[309806918,1704156641659,-531.6,0.0004178,7]
[309806919,1704156641668,-1928.02,0.0004178,7]
[309806921,1704156641677,-500.0,0.00041917,7]
[309806923,1704156641687,-2320.77,0.00041917,7]
[309806925,1704156641696,-2204.61,0.00041917,7]
[309806927,1704156641706,-500.0,0.00041917,7]
[309806929,1704156641715,-500.0,0.00041917,7]
[309806931,1704156641724,-500.0,0.00041917,7]
[309806933,1704156641734,-651.12,0.00041917,7]
[309806935,1704156641742,-500.0,0.00041917,7]
[309806937,1704156641751,-1081.60610849,0.00041917,3]
[309806939,1704156641767,-23430.04389151,0.00041917,3]
[309806941,1704156641783,-500.0,0.00041917,7]
[309806943,1704156641797,-500.0,0.00041917,7]
[309806945,1704156641808,-2410.99,0.00041917,7]
[309806947,1704156641817,-3333.35,0.00041917,7]
[309806949,1704156641827,-572.68,0.00041917,7]
[309806951,1704156641835,-500.0,0.00041917,7]
[309806953,1704156641844,-1771.80089147,0.00041917,7]
[309806954,1704156641857,-363.19027444,0.00041917,7]
[309806957,1704156641883,-349.958,0.00035999,4]
[309806958,1704156641892,-617.91828407,0.00041093,20]
[309806959,1704156641902,-1032.12371593,0.00041917,7]
[309807023,1704156647753,-1000.0,0.00041915,7]
[309807024,1704156647768,-6636.70289651,0.00041915,4]
[309807047,1704156865368,11986.74180922,0.00021,2]
[309807049,1704156866684,8288.49463697,0.00021,2]
[309807051,1704157277401,3279.12748662,0.00021,2]
[309807456,1704157836078,-2988.74038955,0.00025221,2]
[309807457,1704157836089,-1028.57928007,0.00025222,2]
[309807458,1704157836100,-300.69795408,0.00025223,2]
[309807459,1704157836110,-245.49702411,0.00025223,2]
[309807460,1704157836119,-274.09651383,0.00025223,2]
[309807461,1704157836129,-13667.44592962,0.00025223,2]
[309807462,1704157836139,-154.92253873,0.00025224,2]
[309807463,1704157836149,-7540.40550257,0.00025224,2]
[309807464,1704157836159,-381.03389712,0.00025225,2]
[309807465,1704157836169,-2030.79634565,0.00025225,2]
[309807466,1704157836179,-675.55479392,0.00025225,2]
[309807467,1704157836188,-162.41323138,0.00025225,2]
[309807468,1704157836199,-154.92253873,0.00025226,2]
[309807469,1704157836209,-2026.17456491,0.00025226,2]
[309807470,1704157836219,-1119.06373202,0.00025297,2]
[309807471,1704157836229,-193.051407,0.00026887,2]
[309807472,1704157836241,-245.28258,0.00027043,2]
[309807473,1704157836251,-200.0,0.00027754,15]
[309807474,1704157836261,-247.69754463,0.00027998,2]
[309807475,1704157836271,-280.0,0.0003053,15]
[309807476,1704157836281,-241.41986091,0.00031127,4]
[309807477,1704157836291,-24900.0,0.00032874,2]
[309807478,1704157836301,-391.0,0.00033582,15]
[309807479,1704157836311,-1000.0,0.00035351,7]
[309807480,1704157836321,-194.2520832,0.00035352,2]
[309807481,1704157836332,-338.0,0.00035452,2]
[309807482,1704157836342,-186.76248,0.00035616,120]
[309807483,1704157836353,-384.97578846,0.00036,2]
[309807484,1704157836363,-1226.65125432,0.000365,5]
[309807485,1704157836373,-492.98297669,0.00036807,2]
[309807486,1704157836383,-429.83382785,0.00036807,2]
[309807487,1704157836394,-191.74789989,0.00036807,2]
[309807488,1704157836403,-875.0,0.00036807,2]
[309807489,1704157836413,-200.0,0.00036941,15]
[309807490,1704157836423,-348.0,0.00036941,15]
[309807491,1704157836432,-155.33300553,0.00036984,4]
[309807492,1704157836442,-973.72829112,0.00036984,2]
[309807493,1704157836452,-417.94666028,0.00037,7]
[309807494,1704157836462,-1066.93,0.0003792,2]
[309807495,1704157836471,-1502.98059705,0.00038,120]
[309807496,1704157836481,-71.43841325,0.00038,7]
[309807557,1704157837907,-84.33424244,0.00038,7]
[309807559,1704157837918,-380.05,0.00038349,3]
[309807561,1704157837929,-3864.22104007,0.00038359,2]
[309807563,1704157837940,-709.69321005,0.00038359,2]
[309807565,1704157837951,-133.75800744,0.00038359,2]
[309807568,1704157837972,-493.28234747,0.00038359,2]
[309807570,1704157837989,-4726.39948303,0.00038359,2]
[309807572,1704157838000,-1270.83374624,0.00038459,2]
[309807574,1704157838010,-388.0,0.0003874,2]
[309807575,1704157838020,-578.0554099,0.000388,45]
[309807577,1704157838030,-476.36698059,0.00039,10]
[309807579,1704157838040,-2030.87148556,0.00039,2]
[309807581,1704157838049,-2477.959816,0.00039038,2]
[309807583,1704157838060,-752.21572446,0.00039038,5]
[309807585,1704157838071,-886.15437197,0.0003968,2]
[309807587,1704157838081,-301.36141162,0.0003986,4]
[309807589,1704157838091,-8532.81607062,0.0004,3]
[309807591,1704157838107,-1467.18392938,0.0004,3]
[309807594,1704157838118,-160.0577097,0.0004,4]
[309807596,1704157838128,-305.01160269,0.00040271,4]
[309807598,1704157838138,-200.0,0.00040635,30]
[309807600,1704157838149,-200.0,0.00040635,30]
[309807602,1704157838159,-368.0,0.00040635,30]
[309807603,1704157838170,-379.25546875,0.00040682,2]
[309807605,1704157838180,-1249.18635015,0.00040682,4]
[309807607,1704157838191,-1000.0,0.00040762,10]
[309807609,1704157838202,-163.601699,0.00040881,2]
[309807611,1704157838213,-213.544295,0.00040881,2]
[309807613,1704157838224,-162.95475848,0.00040993,2]
[309807615,1704157838237,-13001.28032,0.00040999,4]
[309807617,1704157838247,-10006.20964009,0.00041,2]
[309807618,1704157838259,-678.4698388,0.00041052,4]
[309807620,1704157838269,-9620.25060806,0.00041093,4]
[309807622,1704157838281,-293.645103,0.00041093,4]
[309807623,1704157838291,-259.0671917,0.00041093,4]
[309807625,1704157838301,-291.8871704,0.00041093,10]
[309807626,1704157838311,-996.571467,0.00041093,2]
[309807627,1704157838321,-479.61158315,0.00041093,4]
[309807629,1704157838330,-373.75248597,0.00041093,4]
[309807630,1704157838339,-584.0544719,0.00041093,4]
[309807631,1704157838349,-493.03365661,0.00041093,2]
[309807632,1704157838359,-434.95615109,0.00041093,4]
[309807633,1704157838369,-780.69671155,0.00041093,4]
[309807634,1704157838380,-616.23372987,0.00041093,2]
[309807635,1704157838389,-505.14781988,0.00041094,4]
[309807636,1704157838399,-402.02119541,0.00041094,4]
[309807637,1704157838408,-500.0,0.00041095,7]
[309807638,1704157838418,-1929.03,0.00041095,7]
[309807639,1704157838427,-412.33022692,0.00041095,7]
[309807640,1704157838436,-619.58734193,0.00041095,7]
[309807641,1704157838445,-500.0,0.00041095,7]
[309807642,1704157838454,-500.0,0.00041095,7]
[309807643,1704157838463,-500.0,0.00041095,7]
[309807644,1704157838472,-500.0,0.00041095,7]
[309807645,1704157838482,-500.0,0.00041095,7]
[309807646,1704157838493,-500.0,0.00041095,7]
[309807647,1704157838503,-500.0,0.00041095,7]
[309807648,1704157838513,-2224.07,0.00041095,7]
[309807649,1704157838522,-512.37647407,0.00041095,7]
[309807650,1704157838532,-500.0,0.00041095,7]
[309807651,1704157838542,-500.0,0.00041095,7]
[309807652,1704157838551,-375.79508949,0.00041095,7]
[309807653,1704157838561,-500.0,0.00041095,7]
[309807654,1704157838571,-500.0,0.00041095,7]
[309807655,1704157838581,-651.12,0.00041095,7]
[309807656,1704157838591,-503.98301238,0.00041095,7]
[309807657,1704157838600,-500.0,0.00041095,7]
[309807658,1704157838610,-24511.65,0.00041095,3]
[309807659,1704157838620,-150.0,0.00041095,7]
[309807660,1704157838630,-500.0,0.00041095,7]
[309807661,1704157838640,-500.0,0.00041095,7]
[309807662,1704157838650,-500.0,0.00041095,7]
[309807663,1704157838659,-516.71242908,0.00041095,7]
[309807664,1704157838670,-500.0,0.00041095,7]
[309807665,1704157838680,-510.41341757,0.00041095,7]
[309807666,1704157838689,-500.0,0.00041095,7]
[309807667,1704157838698,-2410.99,0.00041095,7]
[309807668,1704157838707,-572.68,0.00041095,7]
[309807669,1704157838717,-5537.35,0.00041095,7]
[309807670,1704157838727,-3333.35,0.00041095,7]
[309807671,1704157838738,-500.0,0.00041095,7]
[309807672,1704157838747,-7779.12033688,0.00041095,14]
[309807673,1704157838835,-521.04904907,0.00041095,7]
[309807674,1704157838845,-732.14,0.00041095,7]
[309807675,1704157838855,-500.0,0.00041095,7]
[309807676,1704157838865,-512.00198525,0.00041095,7]
[309807677,1704157838874,-500.0,0.00041095,7]
[309807678,1704157838884,-500.0,0.00041095,7]
[309807679,1704157838894,-1978.76,0.00041095,7]
[309807680,1704157838903,-531.6,0.00041095,7]
[309807681,1704157838912,-514.07894467,0.00041095,7]
[309807682,1704157838922,-857.24,0.00041095,7]
[309807683,1704157838931,-269.24849544,0.00041095,7]
[309807684,1704157838940,-500.0,0.00041095,7]
[309807685,1704157838949,-1928.02,0.00041095,7]
[309807686,1704157838959,-500.0,0.00041095,7]
[309807687,1704157838969,-200.08381574,0.00041095,2]
[309807688,1704157838978,-41864.4608538,0.00041096,15]
[309807689,1704157838988,-155.69497247,0.0004113,4]
[309807690,1704157838998,-180.01708911,0.0004113,4]
[309807691,1704157839007,-249.81304422,0.0004113,4]
[309807692,1704157839017,-3890.78792731,0.0004113,4]
[309807693,1704157839027,-2094.98073876,0.0004113,4]
[309807694,1704157839037,-250.77045699,0.0004113,4]
[309807695,1704157839046,-196.14263589,0.0004113,4]
[309807696,1704157839056,-679.57222694,0.0004113,4]
[309807697,1704157839066,-314.63,0.00041131,7]
[309807698,1704157839075,-314.63,0.00041131,7]
[309807699,1704157839085,-314.63,0.00041131,7]
[309807700,1704157839097,-314.63,0.00041131,7]
[309807701,1704157839107,-314.63,0.00041131,7]
[309807702,1704157839117,-314.63,0.00041131,7]
[309807703,1704157839127,-314.63,0.00041131,7]
[309807705,1704157839137,-314.63,0.00041131,7]
[309807708,1704157839147,-314.63,0.00041131,7]
[309807709,1704157839156,-314.63,0.00041131,7]
[309807710,1704157839166,-194.2520832,0.00041132,2]
[309807711,1704157839176,-100377.17082752,0.00041132,2]
[309807713,1704157839186,-500.0,0.00041232,7]
[309807715,1704157839195,-1929.03,0.00041232,7]
[309807716,1704157839204,-500.0,0.00041232,7]
[309807718,1704157839214,-500.0,0.00041232,7]
[309807719,1704157839223,-500.0,0.00041232,7]
[309807720,1704157839232,-500.0,0.00041232,7]
[309807721,1704157839243,-500.0,0.00041232,7]
[309807722,1704157839253,-500.0,0.00041232,7]
[309807723,1704157839262,-500.0,0.00041232,7]
[309807724,1704157839271,-2224.07,0.00041232,7]
[309807725,1704157839281,-500.0,0.00041232,7]
[309807726,1704157839290,-500.0,0.00041232,7]
[309807727,1704157839300,-500.0,0.00041232,7]
[309807728,1704157839310,-500.0,0.00041232,7]
[309807729,1704157839319,-651.12,0.00041232,7]
[309807730,1704157839329,-500.0,0.00041232,7]
[309807731,1704157839339,-24511.65,0.00041232,3]
[309807732,1704157839350,-150.72532228,0.00041232,7]
[309807733,1704157839359,-500.0,0.00041232,7]
[309807734,1704157839369,-500.0,0.00041232,7]
[309807735,1704157839378,-500.0,0.00041232,7]
[309807736,1704157839389,-500.0,0.00041232,7]
[309807737,1704157839399,-500.0,0.00041232,7]
[309807738,1704157839410,-2410.99,0.00041232,7]
[309807739,1704157839419,-572.68,0.00041232,7]
[309807740,1704157839427,-5537.35,0.00041232,7]
[309807741,1704157839436,-3333.35,0.00041232,7]
[309807742,1704157839445,-500.0,0.00041232,7]
[309807743,1704157839454,-732.14,0.00041232,7]
[309807744,1704157839463,-500.0,0.00041232,7]
[309807745,1704157839475,-500.0,0.00041232,7]
[309807746,1704157839484,-500.0,0.00041232,7]
[309807747,1704157839496,-1978.76,0.00041232,7]
[309807748,1704157839505,-531.6,0.00041232,7]
[309807749,1704157839515,-857.24,0.00041232,7]
[309807750,1704157839525,-500.0,0.00041232,7]
[309807751,1704157839538,-1928.02,0.00041232,7]
[309807752,1704157839548,-526.7657092,0.00041232,7]
[309807753,1704157839559,-627.28828351,0.00041367,4]
[309807754,1704157839572,-4101.39787276,0.00041367,4]
[309807755,1704157839583,-886.2099919,0.00041367,4]
[309807756,1704157839593,-169.28946322,0.00041367,4]
[309807757,1704157839602,-552.52248839,0.00041367,4]
[309807758,1704157839612,-242.05107126,0.00041367,4]
[309807759,1704157839621,-168.04364669,0.00041367,4]
[309807760,1704157839630,-263.45402214,0.00041367,4]
[309807761,1704157839640,-469.76112866,0.00041368,4]
[309807762,1704157839649,-250.0,0.00041368,10]
[309807763,1704157839658,-500.0,0.00041369,7]
[309807764,1704157839667,-1929.03,0.00041369,7]
[309807765,1704157839676,-500.0,0.00041369,7]
[309807766,1704157839686,-500.0,0.00041369,7]
[309807767,1704157839695,-500.0,0.00041369,7]
[309807768,1704157839704,-500.0,0.00041369,7]
[309807769,1704157839713,-500.0,0.00041369,7]
[309807770,1704157839722,-2224.07,0.00041369,7]
[309807771,1704157839731,-500.0,0.00041369,7]
[309807772,1704157839742,-500.0,0.00041369,7]
[309807773,1704157839751,-500.0,0.00041369,7]
[309807774,1704157839761,-500.0,0.00041369,7]
[309807775,1704157839770,-651.12,0.00041369,7]
[309807776,1704157839779,-500.0,0.00041369,7]
[309807777,1704157839788,-24511.65,0.00041369,3]
[309807778,1704157839798,-586.06002618,0.00041369,7]
[309807779,1704157839807,-500.0,0.00041369,7]
[309807780,1704157839816,-500.0,0.00041369,7]
[309807781,1704157839826,-296.97843713,0.00041369,7]
[309807782,1704157839835,-500.0,0.00041369,7]
[309807783,1704157839844,-2410.99,0.00041369,7]
[309807784,1704157839853,-572.68,0.00041369,7]
[309807785,1704157839862,-5537.35,0.00041369,7]
[309807786,1704157839872,-3333.35,0.00041369,7]
[309807787,1704157839881,-509.57407601,0.00041369,7]
[309807788,1704157839890,-732.14,0.00041369,7]
[309807789,1704157839900,-500.0,0.00041369,7]
[309807790,1704157839909,-500.0,0.00041369,7]
[309807791,1704157839918,-314.35857318,0.00041369,7]
[309807792,1704157839928,-1978.76,0.00041369,7]
[309807793,1704157839938,-531.6,0.00041369,7]
[309807794,1704157839947,-857.24,0.00041369,7]
[309807795,1704157839957,-500.0,0.00041369,7]
[309807796,1704157839966,-1928.02,0.00041369,7]
[309807797,1704157839975,-299.365,0.00041487,2]
[309807798,1704157839984,-364.58100194,0.00041503,4]
[309807800,1704157839995,-216.4919228,0.00041504,7]
[309807801,1704157840005,-23053.90850853,0.00041505,4]
[309807803,1704157840014,-168.43551829,0.00041506,3]
[309807805,1704157840023,-500.0,0.00041506,7]
[309807806,1704157840032,-1929.03,0.00041506,7]
[309807807,1704157840042,-500.0,0.00041506,7]
[309807808,1704157840051,-500.0,0.00041506,7]
[309807809,1704157840061,-500.0,0.00041506,7]
[309807810,1704157840074,-500.0,0.00041506,7]
[309807811,1704157840083,-500.0,0.00041506,7]
[309807812,1704157840092,-2224.07,0.00041506,7]
[309807813,1704157840102,-500.0,0.00041506,7]
[309807815,1704157840111,-500.0,0.00041506,7]
[309807816,1704157840122,-500.0,0.00041506,7]
[309807817,1704157840132,-500.0,0.00041506,7]
[309807818,1704157840141,-651.12,0.00041506,7]
[309807819,1704157840151,-500.0,0.00041506,7]
[309807820,1704157840160,-24511.65,0.00041506,3]
[309807821,1704157840170,-500.0,0.00041506,7]
[309807822,1704157840180,-500.0,0.00041506,7]
[309807823,1704157840190,-500.0,0.00041506,7]
[309807824,1704157840200,-2410.99,0.00041506,7]
[309807825,1704157840210,-572.68,0.00041506,7]
[309807826,1704157840219,-5537.35,0.00041506,7]
[309807827,1704157840228,-3333.35,0.00041506,7]
[309807828,1704157840239,-732.14,0.00041506,7]
[309807829,1704157840248,-500.0,0.00041506,7]
[309807830,1704157840257,-500.0,0.00041506,7]
[309807831,1704157840267,-1978.76,0.00041506,7]
[309807832,1704157840277,-531.6,0.00041506,7]
[309807833,1704157840286,-857.24,0.00041506,7]
[309807835,1704157840296,-500.0,0.00041506,7]
[309807837,1704157840305,-1928.02,0.00041506,7]
[309807838,1704157840315,-186.76248,0.00041553,120]
[309807839,1704157840324,-1929.03,0.00041643,7]
[309807840,1704157840333,-500.0,0.00041643,7]
[309807841,1704157840343,-500.0,0.00041643,7]
[309807842,1704157840352,-500.0,0.00041643,7]
[309807843,1704157840362,-327.2937778,0.00041643,7]
[309807844,1704157840371,-500.0,0.00041643,7]
[309807845,1704157840380,-2224.07,0.00041643,7]
[309807846,1704157840390,-500.0,0.00041643,7]